bitfinex-derivatives/quotes_BTCF0:USTF0_20251225
["timestamp","ask_amount","ask_price","bid_price","bid_amount"]
[1766694852940,0.0113913,87848.0,87830.0,0.13616]
[1766694855735,0.0113913,87848.0,87831.0,0.0113933]
[1766694855929,0.0113913,87848.0,87832.0,0.11968]
[1766694857625,0.00017083,87852.0,87828.0,0.00017083]
[1766694857626,0.0113915,87846.0,87828.0,0.00017083]
[1766694857825,0.0113915,87846.0,87832.0,0.05724]
[1766694858039,0.0113912,87848.0,87832.0,0.05724]
[1766694858336,0.00017083,87852.0,87832.0,0.0686332]
[1766694858926,0.0113914,87847.0,87832.0,0.05724]
[1766694859933,0.0113914,87847.0,87832.0,0.05124]
[1766694860128,0.00017083,87852.0,87832.0,0.05124]
[1766694860327,0.0113917,87844.0,87832.0,0.05124]
[1766694860924,0.0113921,87842.0,87832.0,0.05124]
[1766694861124,0.0113908,87851.0,87797.0,0.2422]
[1766694861323,0.0113908,87851.0,87793.0,0.0113983]
[1766694861324,0.0113933,87832.0,87808.0,0.15412]
[1766694861529,0.0113933,87832.0,87808.0,0.18412]
[1766694861736,0.0113933,87832.0,87816.0,0.0113952]
[1766694861937,0.0113929,87836.0,87819.0,0.0113949]
[1766694862136,0.0113929,87836.0,87820.0,0.05724]
[1766694862327,0.01156373,87836.0,87821.0,0.0113947]
[1766694862834,0.01156373,87836.0,87820.0,0.05724]
[1766694862835,0.00017083,87836.0,87820.0,0.05724]
[1766694863036,0.00017083,87836.0,87820.0,0.08724]
[1766694863238,0.00017083,87836.0,87827.0,0.0113939]
[1766694863842,0.00017083,87836.0,87828.0,0.05724]
[1766694866037,0.09688,87846.0,87833.0,0.011393]
[1766694866241,0.09688,87846.0,87830.0,0.0113935]
[1766694866647,0.09688,87846.0,87832.0,0.0113933]
[1766694867034,0.09688,87846.0,87828.0,0.0506333]
[1766694867441,0.09688,87846.0,87829.0,0.0113936]
[1766694867947,0.09688,87846.0,87831.0,0.0113934]
[1766694868141,0.01156203,87848.0,87833.0,0.0113931]
[1766694868337,0.02550507,87847.0,87833.0,0.0113931]
[1766694868536,0.01156203,87848.0,87833.0,0.0113931]
[1766694868940,0.02550511,87847.0,87833.0,0.0113931]
[1766694869139,0.01156203,87848.0,87833.0,0.0113931]
[1766694869344,0.02550511,87847.0,87833.0,0.0113931]
[1766694869546,0.02550511,87846.0,87833.0,0.0113931]
[1766694869731,0.01156203,87848.0,87833.0,0.0113931]
[1766694869934,0.0255145,87847.0,87833.0,0.0113931]
[1766694870135,0.0255145,87846.0,87833.0,0.0113931]
[1766694870445,0.01156203,87848.0,87833.0,0.0113931]
[1766694870644,0.02551624,87847.0,87833.0,0.0113931]
[1766694870848,0.02551624,87846.0,87833.0,0.0113931]
[1766694871045,0.01156203,87848.0,87833.0,0.0113931]
[1766694871339,0.01156203,87848.0,87841.0,0.0113921]
[1766694871340,0.00017083,87848.0,87841.0,0.0113921]
[1766694871545,0.09688,87855.0,87838.0,0.0113924]
[1766694871738,0.0113906,87853.0,87838.0,0.0113924]
[1766694871945,0.02552683,87852.0,87838.0,0.0113924]
[1766694872245,0.0113906,87853.0,87838.0,0.0113924]
[1766694872444,0.02553606,87852.0,87838.0,0.0113924]
[1766694872744,0.02553606,87851.0,87838.0,0.0113924]
[1766694872935,0.0113906,87853.0,87838.0,0.0113924]
[1766694873245,0.02553728,87852.0,87838.0,0.0113924]
[1766694873444,0.02553728,87851.0,87838.0,0.0113924]
[1766694873744,0.02553728,87850.0,87838.0,0.0113924]
[1766694873944,0.0113906,87853.0,87838.0,0.0113924]
[1766694874140,0.02555027,87852.0,87830.0,0.0674324]
[1766694874339,0.00017083,87854.0,87830.0,0.0674324]
[1766694874340,0.00017083,87854.0,87840.0,0.07786917]
[1766694874541,0.00017083,87854.0,87846.0,0.0113914]
[1766694876138,0.01366558,87863.0,87846.0,0.0113914]
[1766694876447,0.02558649,87862.0,87846.0,0.0113914]
[1766694876646,0.01366558,87863.0,87846.0,0.0113914]
[1766694876647,0.02558649,87861.0,87846.0,0.0113914]
[1766694876843,0.02558649,87860.0,87841.0,0.00017083]
[1766694877050,0.00227628,87863.0,87850.0,0.07786917]
[1766694877349,0.00227628,87863.0,87850.0,0.23194917]
[1766694878042,0.00017073,87865.0,87850.0,0.23194917]
[1766694878245,0.15408,87870.0,87850.0,0.23194917]
[1766694878246,0.09684,87870.0,87855.0,0.0113903]
[1766694878644,0.09684,87870.0,87850.0,0.23194917]
[1766694878645,0.0113887,87868.0,87850.0,0.23194917]
[1766694879244,0.01150235,87868.0,87850.0,0.23194917]
[1766694881454,0.01150235,87868.0,87850.0,0.20694917]
[1766694882355,0.01150235,87868.0,87851.0,0.0113907]
[1766694883345,0.00011365,87868.0,87851.0,0.0113907]
[1766694884252,0.00011365,87868.0,87850.0,0.20694917]
[1766694885355,0.00011365,87868.0,87853.0,0.0113905]
[1766694886364,0.00011365,87868.0,87850.0,0.21834007]
[1766694886658,0.011389,87865.0,87850.0,0.20694917]
[1766694886841,0.011389,87865.0,87850.0,0.12908]
[1766694887047,0.00011365,87868.0,87851.0,0.0113908]
[1766694888459,0.00011365,87868.0,87850.0,0.12908]
[1766694889154,0.02539651,87867.0,87852.0,0.0113906]
[1766694889355,0.0113892,87864.0,87850.0,0.12908]
[1766694890860,0.0113888,87867.0,87851.0,0.0113908]
[1766694891064,0.02539493,87866.0,87851.0,0.0113908]
[1766694891255,0.0113888,87867.0,87851.0,0.0113908]
[1766694891452,0.0113891,87865.0,87851.0,0.0113908]
[1766694892053,0.0113891,87865.0,87850.0,0.12908]
[1766694892664,0.0113891,87865.0,87850.0,0.1404709]
[1766694893365,0.00011365,87868.0,87855.0,0.0113903]
[1766694893570,0.02540061,87867.0,87857.0,0.01139]
[1766694893759,0.00011365,87868.0,87857.0,0.06863]
[1766694893958,0.02540063,87867.0,87857.0,0.06863]
[1766694894258,0.0113888,87867.0,87857.0,0.05724]
[1766694895562,0.00011365,87868.0,87857.0,0.04424]
[1766694896561,0.01150235,87868.0,87857.0,0.04424]
[1766694897465,0.02541422,87867.0,87857.0,0.04424]
[1766694897768,0.01150235,87868.0,87857.0,0.04424]
[1766694897972,0.02541422,87867.0,87857.0,0.04424]
[1766694898266,0.01150235,87868.0,87857.0,0.04424]
[1766694898460,0.02541887,87867.0,87857.0,0.04424]
[1766694898665,0.01150235,87868.0,87857.0,0.04424]
[1766694898862,0.02541887,87867.0,87857.0,0.04424]
[1766694899064,0.0113893,87863.0,87857.0,0.04424]
[1766694899371,0.00011365,87868.0,87841.0,0.00017083]
[1766694899573,0.07786917,87860.0,87842.0,0.05724]
[1766694899872,0.0113899,87859.0,87842.0,0.18408]
[1766694900461,0.00011365,87868.0,87856.0,0.0113901]
[1766694900766,0.06073351,87884.0,87854.0,0.05724]
[1766694900969,0.06073351,87884.0,87855.0,0.15408]
[1766694900970,0.09684,87883.0,87855.0,0.15408]
[1766694901162,0.0113883,87871.0,87855.0,0.15408]
[1766694901358,0.07786917,87870.0,87838.0,0.0113924]
[1766694901565,0.0113888,87867.0,87849.0,0.011391]
[1766694901764,0.0113888,87867.0,87850.0,0.15408]
[1766694902072,0.0113888,87867.0,87851.0,0.0113908]
[1766694902271,0.00227551,87893.0,87876.0,0.0113875]
[1766694902477,0.00227551,87893.0,87876.0,0.01155823]
[1766694902864,0.07786917,87890.0,87865.0,0.0113889]
[1766694903061,0.08925627,87880.0,87862.0,0.0113893]
[1766694903471,0.0113874,87878.0,87860.0,0.04744]
[1766694904073,0.01155813,87878.0,87861.0,0.0113895]
[1766694906368,0.00017073,87878.0,87861.0,0.0113895]
[1766694906974,0.00017073,87878.0,87864.0,0.0113891]
[1766694907173,0.00017073,87878.0,87866.0,0.0113888]
[1766694909173,0.0113866,87884.0,87868.0,0.07786917]
[1766694909375,0.09684,87886.0,87872.0,0.011388]
[1766694910175,0.06073351,87907.0,87876.0,0.07786917]
[1766694910365,0.07975389,87918.0,87876.0,0.07786917]
[1766694910366,0.0113841,87903.0,87890.0,0.07786917]
[1766694910570,0.0113845,87901.0,87883.0,0.0572]
[1766694910869,0.07786917,87900.0,87884.0,0.0572]
[1766694911069,0.0113851,87896.0,87884.0,0.0572]
[1766694911372,0.0113849,87897.0,87884.0,0.0572]
[1766694911677,0.15404,87901.0,87884.0,0.0113865]
[1766694912780,0.02525024,87900.0,87884.0,0.0113865]
[1766694913079,0.02525024,87899.0,87884.0,0.0113865]
[1766694913281,0.02525024,87898.0,87884.0,0.0113865]
[1766694913474,0.02525024,87897.0,87884.0,0.0113865]
[1766694913668,0.02525024,87896.0,87884.0,0.0113865]
[1766694913882,0.15404,87901.0,87883.0,0.09684]
[1766694914070,0.0252412,87900.0,87883.0,0.09684]
[1766694914271,0.0252412,87899.0,87883.0,0.1082266]
[1766694914478,0.0252412,87898.0,87883.0,0.1082266]
[1766694914781,0.0252412,87897.0,87883.0,0.1082266]
[1766694914982,0.0252412,87896.0,87883.0,0.1082266]
[1766694915180,0.15404,87901.0,87883.0,0.1082266]
[1766694915380,0.02522785,87900.0,87883.0,0.1082266]
[1766694915575,0.02522785,87899.0,87883.0,0.1082266]
[1766694915777,0.02522785,87898.0,87883.0,0.1082266]
[1766694915974,0.02522785,87897.0,87883.0,0.09684]
[1766694916176,0.0113847,87898.0,87883.0,0.09684]
[1766694916376,0.0113855,87892.0,87883.0,0.09684]
[1766694916681,0.0113853,87894.0,87884.0,0.00571]
[1766694916981,0.0113864,87886.0,87875.0,0.0572]
[1766694917169,0.07786917,87890.0,87860.0,0.07786917]
[1766694917373,0.0113866,87884.0,87867.0,0.0113887]
[1766694917568,0.0113866,87884.0,87869.0,0.0113884]
[1766694917782,0.0113866,87884.0,87870.0,0.0572]
[1766694917975,0.00017073,87886.0,87871.0,0.0113882]
[1766694920482,0.00017073,87886.0,87870.0,0.0572]
[1766694920675,0.00017073,87886.0,87869.0,0.0113884]
[1766694920980,0.00017073,87886.0,87870.0,0.0572]
[1766694921175,0.0113867,87883.0,87870.0,0.0572]
[1766694922980,0.00017073,87886.0,87871.0,0.0113882]
[1766694923286,0.01155713,87886.0,87871.0,0.0113882]
[1766694925074,0.01155713,87886.0,87871.0,0.0685882]
[1766694925488,0.01155713,87886.0,87878.0,0.00105909]
[1766694925777,0.01155713,87886.0,87871.0,0.0685882]
[1766694925778,0.01155713,87886.0,87882.0,0.00066593]
[1766694925979,0.01155713,87886.0,87871.0,0.0535882]
[1766694926189,0.01155713,87886.0,87871.0,0.0649764]
[1766694929778,0.0113866,87884.0,87871.0,0.0535882]
[1766694930586,0.0113868,87882.0,87871.0,0.0535882]
[1766694931287,0.0113872,87879.0,87868.0,0.00017073]
[1766694931480,0.07786917,87880.0,87868.0,0.00017073]
[1766694931681,0.0113879,87874.0,87868.0,0.00017073]
[1766694931888,0.0113879,87874.0,87864.0,0.0572]
[1766694932391,0.0113875,87877.0,87864.0,0.0572]
[1766694934094,0.08925627,87880.0,87864.0,0.0572]
[1766694934291,0.0113874,87878.0,87864.0,0.0572]
[1766694935794,0.011387,87881.0,87864.0,0.0572]
[1766694938693,0.011387,87881.0,87865.0,0.011389]
[1766694941398,0.0113866,87884.0,87867.0,0.0113887]
[1766694941598,0.02523994,87883.0,87867.0,0.0113887]
[1766694941800,0.03662684,87882.0,87867.0,0.0113887]
[1766694942001,0.0113869,87882.0,87867.0,0.0113887]
[1766694942795,0.0113867,87883.0,87867.0,0.0113887]
[1766694943099,0.02524195,87882.0,87867.0,0.0113887]
[1766694943300,0.0113867,87883.0,87867.0,0.0113887]
[1766694943501,0.02524448,87882.0,87867.0,0.0113887]
[1766694943686,0.01155703,87886.0,87864.0,0.0572]
[1766694943887,0.00017073,87886.0,87864.0,0.0872]
[1766694944489,0.0113864,87885.0,87868.0,0.0113885]
[1766694944804,0.0113864,87885.0,87868.0,0.0413885]
[1766694947600,0.00017073,87886.0,87868.0,0.03]
[1766694947813,0.00017073,87886.0,87873.0,0.0113879]
[1766694949707,0.0113869,87882.0,87864.0,0.0572]
[1766694949893,0.0113869,87882.0,87865.0,0.011389]
[1766694950097,0.0113869,87882.0,87865.0,0.041389]
[1766694950598,0.0113869,87882.0,87862.0,0.00017073]
[1766694950802,0.07782419,87872.0,87833.0,6e-08]
[1766694951007,0.13885079,87860.0,87806.0,0.03896]
[1766694951204,0.0113929,87836.0,87806.0,0.02]
[1766694951408,0.0113905,87854.0,87806.0,0.02]
[1766694951409,0.0113937,87830.0,87806.0,0.02]
[1766694951703,0.0113947,87822.0,87809.0,0.00017073]
[1766694951905,0.0113947,87822.0,87809.0,0.02017073]
[1766694952101,0.0113947,87822.0,87809.0,0.00017073]
[1766694952407,0.0113941,87826.0,87809.0,0.00017073]
[1766694953516,0.00017073,87827.0,87809.0,0.00017073]
[1766694954414,0.0113941,87826.0,87809.0,0.00017073]
[1766694954712,0.0113941,87826.0,87810.0,0.01138]
[1766694955310,0.0113941,87826.0,87810.0,0.01133]
[1766694957413,0.0113941,87826.0,87809.0,0.00017073]
[1766694959713,0.3214,87856.0,87809.0,0.03017073]
[1766694959914,0.0113928,87836.0,87811.0,0.011396]
[1766694960115,0.0113928,87836.0,87812.0,0.15404]
[1766694960416,0.0113928,87836.0,87812.0,0.18404]
[1766694960714,0.00017073,87833.0,87812.0,0.1954358]
[1766694961104,0.00017073,87833.0,87815.0,0.0113954]
[1766694961304,0.00017073,87833.0,87815.0,0.0413954]
[1766694962306,0.00017073,87833.0,87818.0,0.0113951]
[1766694963015,0.0113915,87846.0,87823.0,0.0113944]
[1766694963218,0.0113915,87846.0,87824.0,0.15408]
[1766694963411,0.0113915,87846.0,87824.0,0.18408]
[1766694964023,0.00017073,87844.0,87826.0,0.00017073]
[1766694964220,0.00017073,87844.0,87826.0,0.03017073]
[1766694965016,0.00017073,87844.0,87826.0,0.04156473]
[1766694966923,0.00017073,87844.0,87828.0,0.0113937]
[1766694967221,0.00017073,87844.0,87833.0,0.0113931]
[1766694967423,0.09684,87851.0,87833.0,0.0113931]
[1766694968016,0.09684,87851.0,87824.0,0.14764383]
[1766694968220,0.0113907,87852.0,87824.0,0.17764383]
[1766694969027,0.00017073,87847.0,87829.0,0.00017073]
[1766694969226,0.00017073,87847.0,87831.0,0.0113933]
[1766694970017,0.0113915,87846.0,87829.0,0.00017073]
[1766694970326,0.0113915,87846.0,87829.0,0.03017073]
[1766694971914,0.00017073,87847.0,87831.0,0.0113934]
[1766694972729,0.00017073,87847.0,87829.0,0.01156433]
[1766694973036,0.00017073,87847.0,87829.0,0.04156433]
[1766694974325,0.0113927,87837.0,87829.0,0.00017073]
[1766694974518,0.0113927,87837.0,87829.0,7e-08]
[1766694975120,0.0113927,87837.0,87826.0,0.10556007]
[1766694975319,0.0113927,87837.0,87803.0,0.0113969]
[1766694975320,0.00017073,87847.0,87825.0,0.15408]
[1766694975627,0.0113928,87836.0,87825.0,0.15408]
[1766694977131,0.00017073,87847.0,87825.0,0.1654742]
[1766694977132,0.0113923,87840.0,87825.0,0.1654742]
[1766694979517,0.0113921,87842.0,87826.0,0.011394]
[1766694979917,0.0113921,87842.0,87828.0,0.0113938]
[1766694982029,0.0113921,87842.0,87825.0,0.15408]
[1766694982235,0.0113921,87842.0,87828.0,0.0113938]
[1766694984338,0.0113923,87840.0,87825.0,0.1654741]
[1766694987442,0.00017073,87847.0,87825.0,0.15408]
[1766694987737,0.02626868,87846.0,87825.0,0.15408]
[1766694987935,0.02626868,87845.0,87825.0,0.15408]
[1766694988137,0.02626868,87844.0,87825.0,0.15408]
[1766694988441,0.00017073,87847.0,87825.0,0.15408]
[1766694988442,0.0113924,87839.0,87825.0,0.15408]
[1766694989138,0.0113921,87842.0,87825.0,0.147474]
[1766694989341,0.02628375,87841.0,87825.0,0.147474]
[1766694989534,0.02628375,87840.0,87825.0,0.147474]
[1766694989741,0.02628375,87839.0,87825.0,0.147474]
[1766694989936,0.00017073,87847.0,87825.0,0.147474]
[1766694990125,0.02628429,87846.0,87825.0,0.147474]
[1766694990330,0.0113923,87840.0,87826.0,0.011394]
[1766694990541,0.02628429,87839.0,87826.0,0.011394]
[1766694990843,0.02628429,87839.0,87827.0,0.0113939]
[1766694991039,0.00017073,87847.0,87827.0,0.0113939]
[1766694991236,0.02628466,87846.0,87827.0,0.0113939]
[1766694991436,0.00017073,87847.0,87827.0,0.0113939]
[1766694991437,0.02628466,87845.0,87827.0,0.0113939]
[1766694991640,0.02628466,87844.0,87827.0,0.0113939]
[1766694991942,0.02628466,87843.0,87827.0,0.0113939]
[1766694992140,0.02628466,87842.0,87827.0,0.0113939]
[1766694992442,0.02628466,87841.0,87827.0,0.0113939]
[1766694995745,0.02628466,87841.0,87825.0,0.147474]
[1766694995746,4.66e-06,87841.0,87825.0,0.147474]
[1766694995944,0.0113919,87843.0,87830.0,0.07787461]
[1766694996140,0.0113918,87844.0,87830.0,0.08926811]
[1766694996341,0.0113918,87844.0,87830.0,0.07526811]
[1766694997445,0.00017073,87847.0,87822.0,0.00017073]
[1766694997643,0.00017073,87847.0,87810.0,0.01138]
[1766694997644,0.07787461,87832.0,87810.0,0.01138]
[1766694997947,0.0113948,87821.0,87811.0,0.05184]
[1766694998150,0.0113948,87821.0,87812.0,0.0572]
[1766694998347,0.0113943,87824.0,87812.0,0.0572]
[1766694999538,0.01156473,87827.0,87812.0,0.0572]
[1766695000050,0.0113942,87825.0,87812.0,0.0572]
[1766695004749,0.00017073,87827.0,87812.0,0.0872]
[1766695004950,0.0113941,87826.0,87812.0,0.0872]
[1766695006252,0.0113941,87826.0,87813.0,0.01138]
[1766695006452,0.0113941,87826.0,87813.0,0.04138]
[1766695009057,0.00017073,87827.0,87813.0,0.04138]
[1766695009257,0.02608413,87826.0,87813.0,0.04138]
[1766695009557,0.00017073,87827.0,87813.0,0.04138]
[1766695009760,0.02608287,87826.0,87813.0,0.04138]
[1766695009952,0.00017073,87827.0,87813.0,0.04138]
[1766695010153,0.02608308,87826.0,87813.0,0.04138]
[1766695010356,0.0113944,87824.0,87813.0,0.04138]
[1766695011062,0.0113946,87822.0,87813.0,0.04138]
[1766695012966,0.00017073,87827.0,87809.0,0.00017073]
[1766695013258,0.00017073,87827.0,87813.0,0.05724]
[1766695014155,0.0113948,87821.0,87813.0,0.05724]
[1766695014460,0.00017073,87827.0,87794.0,0.00012185]
[1766695014461,0.07787461,87823.0,87794.0,0.00012185]
[1766695014652,0.0113946,87822.0,87794.0,0.03012185]
[1766695014853,0.07787461,87820.0,87798.0,0.0113976]
[1766695015053,0.0113973,87802.0,87794.0,0.00012185]
[1766695015264,0.0113966,87807.0,87795.0,0.05724]
[1766695015466,0.0113966,87807.0,87795.0,0.08724]
[1766695015667,0.01156705,87810.0,87795.0,0.08724]
[1766695015854,0.00017085,87810.0,87795.0,0.08724]
[1766695017265,0.00017085,87810.0,87799.0,0.0113975]
[1766695017467,0.00017085,87810.0,87804.0,0.0113969]
[1766695017768,0.00017085,87810.0,87804.0,0.0413969]
[1766695018967,0.00017085,87810.0,87804.0,0.0203969]
[1766695019260,0.00017085,87810.0,87804.0,0.0317938]
[1766695020869,0.00017085,87810.0,87806.0,0.0113966]
[1766695021055,0.00017085,87810.0,87806.0,0.0413966]
[1766695021260,0.0113942,87826.0,87810.0,0.0113961]
[1766695021457,0.1082742,87826.0,87810.0,0.0113961]
[1766695021761,0.1082742,87826.0,87810.0,0.0413961]
[1766695022066,0.1082742,87826.0,87810.0,0.0113961]
[1766695022366,0.00017085,87827.0,87810.0,0.10787461]
[1766695023262,0.00017085,87827.0,87812.0,0.0113958]
[1766695023469,0.00017085,87827.0,87812.0,0.0413958]
[1766695024274,0.0113936,87830.0,87814.0,0.0113956]
[1766695024457,0.09688,87832.0,87816.0,0.0113953]
[1766695024662,0.09688,87832.0,87816.0,0.0413953]
[1766695024867,0.09688,87832.0,87818.0,0.0113951]
[1766695025063,0.00017085,87834.0,87818.0,0.0413951]
[1766695025275,0.02609225,87833.0,87822.0,0.0113945]
[1766695025474,0.00017085,87834.0,87822.0,0.0413945]
[1766695025774,0.02609814,87833.0,87822.0,0.0413945]
[1766695026074,0.00017085,87834.0,87822.0,0.0363945]
[1766695026274,0.02609872,87833.0,87822.0,0.0363945]
[1766695026576,0.00017085,87834.0,87822.0,0.0363945]
[1766695026773,0.02610689,87833.0,87822.0,0.0363945]
[1766695027074,0.00017085,87834.0,87822.0,0.0363945]
[1766695027274,0.02610706,87833.0,87822.0,0.0363945]
[1766695027469,0.02610706,87832.0,87822.0,0.0363945]
[1766695027661,0.00017085,87834.0,87822.0,0.0363945]
[1766695027861,0.02611629,87833.0,87822.0,0.0363945]
[1766695028065,0.02611629,87832.0,87822.0,0.0363945]
[1766695028366,0.00017085,87834.0,87822.0,0.0363945]
[1766695028566,0.02611436,87833.0,87822.0,0.0363945]
[1766695028770,0.02611436,87832.0,87822.0,0.0363945]
[1766695028972,0.00017085,87834.0,87822.0,0.0363945]
[1766695029166,0.02611398,87833.0,87822.0,0.0363945]
[1766695029367,0.02611398,87832.0,87822.0,0.0363945]
[1766695029665,0.00017085,87834.0,87822.0,0.0363945]
[1766695031661,0.06088707,87844.0,87822.0,0.08724]
[1766695031866,0.011392,87842.0,87826.0,0.011394]
[1766695032475,0.15412,87843.0,87826.0,0.011394]
[1766695032678,0.15429075,87843.0,87826.0,0.01156485]
[1766695033376,0.15429075,87843.0,87822.0,0.05080485]
[1766695033576,0.15429075,87843.0,87822.0,0.08080485]
[1766695034175,0.15429075,87843.0,87826.0,0.011394]
[1766695034377,0.011392,87842.0,87826.0,0.011394]
[1766695034978,0.15429075,87843.0,87826.0,0.011394]
[1766695035373,0.15429075,87843.0,87830.0,0.07787461]
[1766695035573,0.15429075,87843.0,87833.0,0.0113931]
[1766695035972,0.1082707,87852.0,87833.0,0.0113931]
[1766695036173,0.0572,87850.0,87833.0,0.0113931]
[1766695036977,0.05737085,87850.0,87833.0,0.0113931]
[1766695038177,0.05737085,87850.0,87833.0,0.03]
[1766695039170,0.05737085,87850.0,87836.0,0.0113927]
[1766695039369,0.05737085,87850.0,87838.0,0.0113925]
[1766695039675,0.05737085,87850.0,87841.0,0.0113921]
[1766695039876,0.05737085,87850.0,87838.0,0.0113924]
[1766695040077,0.05737085,87850.0,87840.0,0.08926681]
[1766695040272,0.05737085,87850.0,87840.0,0.0413922]
[1766695040468,0.05737085,87850.0,87840.0,0.0253922]
[1766695041189,0.05737085,87850.0,87840.0,0.0367844]
[1766695042783,0.0113903,87855.0,87842.0,0.0113919]
[1766695042784,0.0572,87855.0,87842.0,0.0113919]
[1766695043570,0.10827,87858.0,87842.0,0.0113919]
[1766695043571,0.01139,87858.0,87842.0,0.0113919]
[1766695043884,0.0831574,87857.0,87842.0,0.0113919]
[1766695044072,0.0572,87857.0,87842.0,0.0113919]
[1766695045468,0.06859,87858.0,87842.0,0.0113919]
[1766695045672,0.02595193,87857.0,87842.0,0.0113919]
[1766695045873,0.02595193,87856.0,87842.0,0.0113919]
[1766695046074,0.06859,87858.0,87842.0,0.0113919]
[1766695046374,0.02594981,87857.0,87840.0,0.07787461]
[1766695046569,0.02594981,87856.0,87840.0,0.10787461]
[1766695046869,0.0113905,87854.0,87840.0,0.11926681]
[1766695048091,0.0113901,87857.0,87840.0,0.11926681]
[1766695048282,0.02595139,87856.0,87840.0,0.10787461]
[1766695048477,0.06859,87858.0,87840.0,0.10787461]
[1766695048677,0.02595409,87857.0,87840.0,0.10787461]
[1766695048988,0.02595409,87856.0,87843.0,0.0113918]
[1766695049281,0.0572,87858.0,87843.0,0.0113918]
[1766695049587,0.02595625,87857.0,87843.0,0.0113918]
[1766695049887,0.02595625,87856.0,87843.0,0.0113918]
[1766695050079,0.0572,87858.0,87843.0,0.0113918]
[1766695050285,0.02595529,87857.0,87843.0,0.0113918]
[1766695050484,0.02595529,87856.0,87843.0,0.0113918]
[1766695050678,0.0113892,87864.0,87848.0,0.0113911]
[1766695050880,0.08315544,87863.0,87848.0,0.0113911]
[1766695051083,0.02595544,87862.0,87848.0,0.0113911]
[1766695051479,0.03734494,87862.0,87845.0,0.0113916]
[1766695051674,0.02595544,87861.0,87845.0,0.0413916]
[1766695052489,0.02595544,87861.0,87845.0,0.0213916]
[1766695053184,0.02595544,87861.0,87845.0,0.0327832]
[1766695053383,0.02595544,87861.0,87847.0,0.0113913]
[1766695053780,0.02595544,87861.0,87850.0,0.0113909]
[1766695053986,0.02595544,87860.0,87850.0,0.0413909]
[1766695054181,0.02595544,87859.0,87850.0,0.0413909]
[1766695054489,0.0572,87866.0,87850.0,0.0413909]
[1766695054675,0.0572,87867.0,87852.0,0.0113907]
[1766695054877,0.09684,87878.0,87857.0,0.07787461]
[1766695055083,0.0113876,87876.0,87860.0,0.0113897]
[1766695055278,0.0113876,87876.0,87860.0,0.0413897]
[1766695055687,0.02478253,87876.0,87860.0,0.0413897]
[1766695055879,0.02478253,87876.0,87860.0,0.03]
[1766695056487,0.0113876,87876.0,87860.0,0.0413896]
[1766695057692,0.0113876,87876.0,87868.0,0.00109636]
[1766695058079,0.0113876,87876.0,87860.0,0.0113896]
[1766695058286,0.0113876,87876.0,87860.0,0.0413896]
[1766695059592,0.0113876,87876.0,87860.0,0.0213896]
[1766695060285,0.0113879,87874.0,87860.0,0.0213896]
[1766695062186,0.0113882,87872.0,87860.0,0.0213896]
[1766695062491,0.0113882,87872.0,87861.0,0.00561]
[1766695062692,0.0113882,87872.0,87861.0,0.03561]
[1766695066487,0.02567829,87871.0,87861.0,0.03561]
[1766695066682,0.0113882,87872.0,87861.0,0.01461]
[1766695066981,0.02567829,87871.0,87861.0,0.01461]
[1766695067178,0.0113882,87872.0,87861.0,0.01461]
[1766695067486,0.02567949,87871.0,87861.0,0.01461]
[1766695067689,0.0113882,87872.0,87861.0,0.01461]
[1766695067883,0.02567948,87871.0,87861.0,0.01461]
[1766695068084,0.0113882,87872.0,87861.0,0.01461]
[1766695068300,0.02568126,87871.0,87861.0,0.01461]
[1766695068492,0.07034818,87878.0,87861.0,0.01461]
[1766695068693,0.02568126,87877.0,87861.0,0.01461]
[1766695068894,0.02568126,87876.0,87861.0,0.01461]
[1766695069095,0.0113879,87874.0,87836.0,0.0113927]
[1766695069294,0.03706926,87873.0,87846.0,0.0113913]
[1766695069496,0.0113887,87868.0,87847.0,0.15404]
[1766695069679,0.0113892,87864.0,87848.0,0.0685912]
[1766695069884,0.0113892,87864.0,87849.0,0.09684]
[1766695070084,0.0113892,87864.0,87849.0,0.12684]
[1766695070294,0.0113892,87864.0,87850.0,0.0113909]
[1766695070490,0.0113892,87864.0,87850.0,0.0313909]
[1766695074198,0.00017042,87865.0,87850.0,0.02]
[1766695074499,0.0113898,87860.0,87849.0,0.09684]
[1766695074795,0.00017042,87865.0,87813.0,0.08190093]
[1766695075000,0.0113909,87851.0,87821.0,0.15404]
[1766695075202,0.0113909,87851.0,87821.0,0.18404]
[1766695075692,0.00017075,87845.0,87827.0,0.00017075]
[1766695075896,0.00017075,87845.0,87838.0,0.0113924]
[1766695076096,0.00017075,87845.0,87839.0,0.0572]
[1766695076289,0.00017075,87845.0,87839.0,0.0872]
[1766695076601,0.00017075,87845.0,87840.0,0.0113922]
[1766695076798,0.0113897,87860.0,87844.0,0.0113916]
[1766695077098,0.0113906,87854.0,87839.0,0.0572]
[1766695077297,0.0572,87866.0,87841.0,0.0113921]
[1766695077298,0.0113901,87857.0,87841.0,0.0113921]
[1766695077494,0.0113901,87857.0,87841.0,0.0413921]
[1766695078591,0.00017042,87858.0,87841.0,0.03]
[1766695078816,0.02569817,87857.0,87840.0,0.00017075]
[1766695078995,0.02569817,87856.0,87840.0,0.03017075]
[1766695079194,0.02569817,87855.0,87840.0,0.03017075]
[1766695079499,0.00017042,87858.0,87840.0,0.03017075]
[1766695079697,0.02569817,87857.0,87840.0,0.03017075]
[1766695079900,0.02569817,87856.0,87840.0,0.03017075]
[1766695080203,0.0113908,87852.0,87840.0,0.03017075]
[1766695080388,0.011391,87850.0,87840.0,0.03017075]
[1766695082600,0.0113906,87853.0,87840.0,0.03017075]
[1766695082796,0.0113908,87851.0,87840.0,0.00017075]
[1766695083003,0.0113911,87849.0,87840.0,0.04713075]
[1766695094120,0.00017042,87858.0,87840.0,0.07713075]
[1766695094327,0.0113905,87854.0,87840.0,0.07713075]
[1766695094524,0.02563379,87853.0,87840.0,0.07713075]
[1766695094824,0.02563379,87852.0,87840.0,0.07713075]
[1766695095025,0.0113901,87857.0,87840.0,0.07713075]
[1766695095326,0.02563442,87856.0,87841.0,0.0113921]
[1766695095520,0.02563442,87855.0,87841.0,0.0413921]
[1766695095722,0.02563442,87854.0,87841.0,0.0413921]
[1766695096427,0.02563442,87854.0,87841.0,0.03]
[1766695100329,0.0113906,87853.0,87841.0,0.03]
[1766695100529,0.02563442,87852.0,87841.0,0.03]
[1766695101127,0.0113906,87853.0,87841.0,0.03]
[1766695102834,0.0113904,87854.0,87841.0,0.03]
[1766695103033,0.02566578,87853.0,87841.0,0.03]
[1766695103334,0.02566578,87852.0,87841.0,0.03]
[1766695103632,0.0113904,87854.0,87841.0,0.03]
[1766695103826,0.02567465,87853.0,87841.0,0.03]
[1766695104135,0.02567465,87852.0,87841.0,0.03]
[1766695104339,0.02567465,87851.0,87841.0,0.03]
[1766695104632,0.02567465,87850.0,87841.0,0.03]
[1766695104834,0.0113904,87854.0,87841.0,0.03]